bitfinex-derivatives/quotes_ETHF0:USTF0_20250212
["timestamp","ask_amount","ask_price","bid_price","bid_amount"]
[1739367273048,3.2078,2604.8,2604.0,4.94137938]
[1739367273252,3.2078,2604.4,2604.2,0.00575738]
[1739367273551,3.2078,2604.4,2603.1,0.384]
[1739367273552,3.2078,2604.4,2603.6,4.94137938]
[1739367273852,3.2078,2604.3,2603.7,4.96602496]
[1739367274145,0.00575738,2604.8,2603.8,3.2078]
[1739367274345,3.2078,2605.9,2603.8,3.2078]
[1739367274549,3.2078,2606.4,2604.3,12.38617884]
[1739367274747,1.91763,2607.3,2604.6,3.2078]
[1739367274748,3.2078,2606.3,2604.6,3.2078]
[1739367274951,3.2078,2607.1,2605.4,3.2078]
[1739367275346,3.2078,2606.8,2605.5,4.98566595]
[1739367275547,3.2078,2606.9,2605.5,4.98566595]
[1739367275847,0.76742,2606.0,2605.9,0.00575738]
[1739367276151,0.76742,2606.0,2604.3,9.2551749]
[1739367276152,3.2078,2606.0,2604.3,0.07679606]
[1739367276354,3.2078,2605.0,2604.0,3.2078]
[1739367276650,3.2078,2604.1,2602.6,3.2078]
[1739367276860,0.76804,2603.9,2602.6,3.2078]
[1739367277149,3.2078,2604.1,2603.3,5.09245048]
[1739367277454,0.00575738,2603.5,2603.2,3.2078]
[1739367277641,3.97548,2605.2,2603.4,5.09245048]
[1739367277847,3.2078,2605.1,2603.5,3.2078]
[1739367278148,3.2078,2604.5,2603.5,5.0034019]
[1739367278350,3.97592,2603.7,2603.5,5.0034019]
[1739367278649,0.76797,2604.2,2602.8,3.2078]
[1739367278847,20.113,2605.3,2602.8,3.2078]
[1739367278848,3.2078,2604.3,2603.6,4.94918923]
[1739367279045,0.00575738,2603.9,2603.3,0.00575738]
[1739367279554,1.91894,2605.5,2603.3,0.00575738]
[1739367279555,3.2078,2605.1,2603.6,3.2078]
[1739367279760,0.76776,2604.9,2603.6,3.2078]
[1739367280053,3.2078,2605.0,2603.7,4.88922849]
[1739367280245,3.2078,2604.2,2603.7,4.88922849]
[1739367280446,3.2078,2603.9,2603.7,4.88922849]
[1739367280647,3.2078,2604.6,2603.3,0.00575738]
[1739367280847,3.2078,2605.0,2603.8,4.94845248]
[1739367281049,3.2078,2605.0,2603.7,3.2078]
[1739367281255,1.91847,2606.2,2603.7,3.2078]
[1739367281256,0.76785,2604.6,2603.7,3.2078]
[1739367281549,3.2078,2605.3,2603.9,4.94845248]
[1739367281760,3.2078,2604.2,2604.1,0.00575738]
[1739367281951,3.97575,2604.2,2604.1,40.80575738]
[1739367282142,3.2078,2604.7,2604.1,40.80575738]
[1739367282346,3.2078,2604.7,2604.1,45.74104917]
[1739367282751,3.2078,2604.2,2604.1,45.74104917]
[1739367282955,3.2078,2604.2,2601.4,1.14572549]
[1739367282956,3.2078,2604.2,2602.3,3.2078]
[1739367283156,20.113,2605.1,2602.3,3.5926]
[1739367283157,3.2078,2603.4,2602.3,3.5926]
[1739367283455,3.2078,2603.7,2602.6,5.05670483]
[1739367283655,1.91976,2604.4,2602.4,5.05670483]
[1739367283656,3.2078,2603.6,2602.4,5.05670483]
[1739367283854,3.2078,2602.9,2602.8,40.8]
[1739367284059,3.2078,2603.7,2602.8,40.8]
[1739367284250,0.00575738,2603.3,2602.8,45.74857942]
[1739367284652,0.76831,2603.0,2602.8,40.8]
[1739367284847,0.00575738,2603.3,2602.9,5.04140775]
[1739367285052,0.00575738,2603.3,2602.9,8.24920775]
[1739367285253,23.95342,2605.9,2602.9,5.04140775]
[1739367285254,3.2078,2603.8,2602.9,5.04140775]
[1739367285461,3.2078,2603.8,2602.8,40.8]
[1739367285649,3.2078,2603.0,2602.8,40.8]
[1739367286150,0.76825,2603.2,2602.8,40.8]
[1739367286346,0.76834,2602.9,2602.8,40.8]
[1739367286551,0.76834,2602.9,2601.6,9.17837884]
[1739367286552,3.2078,2602.9,2601.6,3.2078]
[1739367286763,0.76837,2602.8,2602.7,7.38e-06]
[1739367286951,3.97617,2602.8,2602.7,7.38e-06]
[1739367287147,0.00575,2602.5,2601.4,5.0523103]
[1739367287353,3.2078,2601.8,2601.4,5.0523103]
[1739367287547,0.00575,2602.5,2601.5,40.8]
[1739367287861,3.2078,2601.8,2601.5,40.8]
[1739367288056,0.76872,2601.6,2601.5,40.8]
[1739367288259,3.2078,2601.8,2601.3,0.07688463]
[1739367288260,0.76878,2601.4,2601.3,0.07688463]
[1739367288461,9.2078,2601.8,2600.0,3.2078]
[1739367288462,3.2078,2601.5,2600.0,3.2078]
[1739367288758,3.2078,2601.0,2600.1,4.97074958]
[1739367288952,0.76913,2600.2,2600.1,4.97074958]
[1739367289152,3.2078,2600.2,2599.7,4.97074958]
[1739367289356,20.119,2601.3,2600.1,40.8]
[1739367289555,0.76929,2599.7,2599.0,4.97074958]
[1739367289758,1.92232,2600.9,2598.8,4.97074958]
[1739367289759,3.2078,2599.6,2598.8,4.97074958]
[1739367289955,0.76939,2599.4,2598.6,6.95307868]
[1739367290157,1.92259,2600.6,2598.0,0.3848]
[1739367290158,3.2078,2599.2,2598.7,4.93060021]
[1739367290360,0.76949,2599.0,2598.9,0.0057689]
[1739367290552,3.97729,2599.0,2598.9,0.0057689]
[1739367290749,0.76949,2599.0,2598.9,0.0057689]
[1739367290953,6.0,2599.0,2597.7,3.57998504]
[1739367291153,3.2078,2598.2,2597.8,40.8]
[1739367291358,3.97761,2597.9,2597.8,40.8]
[1739367291964,3.2078,2598.2,2597.8,40.8]
[1739367292155,3.97761,2597.9,2597.8,40.8]
[1739367292356,3.2078,2597.9,2596.1,6.95307868]
[1739367292551,3.2078,2597.2,2596.1,6.95307868]
[1739367292762,3.2078,2597.3,2596.7,5.0369756]
[1739367292961,3.2078,2597.0,2596.1,10.16087868]
[1739367293156,3.2078,2597.0,2592.2,16.49162121]
[1739367293157,3.2078,2596.2,2595.1,6.95307868]
[1739367293362,0.77039,2596.0,2595.2,0.07706535]
[1739367293557,3.2078,2595.9,2595.2,5.01355933]
[1739367293763,3.2135689,2595.9,2595.4,0.0057689]
[1739367293961,3.2135689,2595.9,2594.6,3.2078]
[1739367293962,3.2078,2595.5,2594.0,7.33867868]
[1739367294162,0.0057689,2595.9,2594.1,0.07709803]
[1739367294163,0.7707,2595.0,2594.1,0.07709803]
[1739367294361,3.2078,2594.7,2594.1,8.18269928]
[1739367294560,3.97857,2594.7,2594.1,3.28489803]
[1739367294863,3.2078,2595.2,2594.6,40.8]
[1739367295162,0.77076,2594.7,2594.6,40.8]
[1739367295364,0.77076,2594.7,2594.6,9e-07]
[1739367295560,6.77076,2594.7,2594.6,9e-07]
[1739367295963,0.77118,2593.3,2592.0,6.95307868]
[1739367296160,3.97902,2593.2,2592.1,0.07715751]
[1739367296355,1.92684,2594.8,2592.1,0.07715751]
[1739367296356,3.2078,2593.9,2593.1,40.8]
[1739367296773,3.2078,2593.2,2593.1,40.8]
[1739367296961,3.97908,2593.2,2593.1,40.8]
[1739367297168,9.43084584,2593.2,2592.1,0.07715751]
[1739367297364,3.2078,2592.2,2592.1,0.07715751]
[1739367297755,0.0057809,2593.4,2592.1,0.07715751]
[1739367297756,3.2078,2592.5,2592.4,0.0038586]
[1739367298168,3.2078,2592.5,2589.6,1.0]
[1739367298169,11.18057255,2592.5,2590.0,10.16087868]
[1739367298365,3.2078,2591.8,2590.7,3.85288008]
[1739367298570,3.2078,2591.6,2590.5,4.92589538]
[1739367298863,3.2078,2591.6,2591.4,3.85288008]
[1739367299062,6.27599368,2591.5,2590.9,40.8]
[1739367299264,3.2078,2591.0,2590.9,44.65288008]
[1739367299465,3.97974,2591.0,2590.9,40.8]
[1739367299660,12.54409821,2591.0,2589.6,1.0]
[1739367299859,3.97999,2590.2,2589.7,0.07722902]
[1739367300065,3.33629821,2591.0,2590.2,3.85288008]
[1739367300066,3.2078,2590.7,2590.2,3.85288008]
[1739367300273,3.2078,2591.1,2590.4,3.85288008]
[1739367300566,3.2078,2590.8,2589.7,3.28502902]
[1739367300766,3.2078,2590.8,2590.0,3.85288008]
[1739367300971,3.2078,2591.0,2590.7,3.85288008]
[1739367301264,6.31462465,2590.9,2590.1,4.95818189]
[1739367301470,3.10682465,2590.9,2590.6,9e-07]
[1739367301769,20.173,2590.8,2590.6,9e-07]
[1739367301971,3.2078,2591.2,2590.6,9e-07]
[1739367302169,0.77179,2591.5,2590.6,9e-07]
[1739367302358,6.95307868,2592.4,2590.6,9e-07]
[1739367302359,3.2078,2593.2,2591.5,3.85288008]
[1739367302664,0.13420665,2592.1,2590.8,3.2078]
[1739367302863,0.13420665,2592.1,2591.0,3.2078]
[1739367303067,3.2078,2591.6,2590.5,3.85288008]
[1739367303272,3.2078,2591.6,2589.7,10.4083]
[1739367303273,3.2078,2591.6,2590.9,3.85288008]
[1739367303566,6.95307868,2592.4,2589.7,10.7947]
[1739367303567,0.13420665,2592.2,2590.7,3.2078]
[1739367303766,0.0057809,2591.3,2591.0,7.06068008]
[1739367304067,5.13461,2595.1,2592.2,3.54012164]
[1739367304276,3.2078,2594.4,2593.0,3.54012164]
[1739367304466,3.2078,2594.1,2592.3,10.16087868]
[1739367304685,3.2078,2593.7,2592.3,3.2078]
[1739367304863,0.07711289,2593.6,2592.3,3.2078]
[1739367305065,3.2078,2593.5,2591.9,3.2078]
[1739367305374,3.2078,2592.4,2591.5,3.2078]
[1739367305570,0.77176,2591.6,2591.5,3.2078]
[1739367305775,6.0,2591.6,2590.8,3.2078]
[1739367306073,6.0,2591.6,2589.3,0.3864]
[1739367306074,3.2078,2592.5,2591.1,6.74792164]
[1739367306373,0.40235258,2591.8,2591.6,3.54012164]
[1739367306667,3.2078,2593.3,2591.7,6.74792164]
[1739367306872,3.28491884,2593.4,2592.1,6.74792164]
[1739367307073,0.07711884,2593.4,2592.7,6.74792164]
[1739367307271,0.07711884,2593.4,2592.7,3.2078]
[1739367307576,3.2078,2592.9,2591.9,3.2078]
[1739367307771,3.2078,2592.6,2591.7,3.54012164]
[1739367308068,0.77121,2593.5,2592.9,3.54012164]
[1739367308271,3.2078,2594.4,2592.8,0.0057809]
[1739367308272,0.7711,2593.9,2593.4,6.74792164]
[1739367308463,20.193,2594.6,2592.8,3.2135809]
[1739367308666,3.2078,2594.2,2592.6,3.2078]
[1739367308866,0.77167,2591.9,2591.7,3.2078]
[1739367309070,0.7717,2591.8,2591.7,3.2078]
[1739367309273,20.198,2593.0,2591.7,3.2078]
[1739367309473,1.92812,2593.4,2591.7,3.2078]
[1739367309474,6.406,2594.5,2592.9,3.2078]
[1739367309771,0.07708911,2594.4,2593.8,6.95307868]
[1739367310078,0.0057809,2594.0,2592.8,6.95307868]
[1739367310275,0.0057809,2594.0,2591.8,10.5383]
[1739367310276,3.2078,2593.8,2592.1,3.2078]
[1739367310571,3.2078,2593.2,2591.7,3.2078]
[1739367310772,3.2078,2592.2,2591.3,3.2078]
[1739367310964,1.9283,2593.1,2591.0,3.2078]
[1739367310965,3.2078,2592.6,2591.0,3.2078]
[1739367311168,0.77161,2592.1,2591.6,6.74792164]
[1739367311364,3.2078,2593.1,2591.6,3.2078]
[1739367311572,0.0057809,2592.1,2591.5,0.0057809]
[1739367311786,0.77176,2591.6,2591.5,0.0057809]
[1739367312272,6.0057809,2592.1,2591.5,3.54590254]
[1739367312273,0.0057809,2592.1,2591.5,3.54590254]
[1739367312473,0.0057809,2592.1,2592.0,6.74792164]
[1739367312674,0.77173,2591.7,2591.6,3.2078]
[1739367312870,0.77173,2591.7,2591.5,0.0057809]
[1739367312871,0.77176,2591.6,2591.5,0.0057809]
[1739367313067,3.2078,2591.6,2590.3,10.16087868]
[1739367313264,3.2078,2590.6,2589.8,10.16087868]
[1739367313470,0.77221,2590.1,2589.8,3.2078]
[1739367313668,0.35766594,2590.5,2589.6,1.0]
[1739367313880,0.77233,2589.7,2589.6,1.0]
[1739367314179,0.35781786,2589.7,2588.5,3.2078]
[1739367314378,0.35781786,2589.7,2589.4,0.00579229]
[1739367314569,0.00579229,2589.9,2589.4,7.34558045]
[1739367314771,0.00579229,2589.9,2589.8,11.08506684]
[1739367314973,3.2078,2592.1,2589.8,12.95307868]
[1739367315170,3.2078,2592.1,2590.7,6.95307868]
[1739367315371,0.08939578,2591.4,2591.1,3.2078]
[1739367315677,3.2078,2592.5,2591.3,4.13198816]
[1739367315878,3.2078,2592.5,2590.8,44.0078]
[1739367316171,3.2078,2592.3,2590.7,3.2078]
[1739367316376,0.77173,2591.7,2591.6,2.29e-06]
[1739367316578,0.00579229,2592.2,2590.7,3.2078]
[1739367316772,3.2078,2591.4,2590.7,3.2078]
[1739367316968,3.2078,2591.2,2589.6,3.2078]
[1739367317280,3.2078,2590.6,2589.3,3.2078]
[1739367317472,3.2078,2590.3,2589.3,3.2078]
[1739367317673,3.2078,2590.3,2589.0,3.2078]
[1739367317871,0.04472809,2590.2,2589.7,0.00579229]
[1739367318174,0.77226,2590.0,2589.8,3.2078]
[1739367318379,0.7723,2589.8,2589.7,0.00579229]
[1739367318877,0.13418429,2589.8,2589.7,4.12608177]
[1739367319083,3.2078,2591.7,2590.1,4.12028948]
[1739367319379,5.647,2592.8,2590.6,4.12028948]
[1739367319380,0.26822874,2591.1,2590.6,4.12028948]
[1739367319577,0.26822874,2591.1,2590.4,3.2078]
[1739367319878,3.2078,2590.5,2589.6,3.2078]
[1739367320068,3.2078,2590.8,2589.6,7.32808948]
[1739367320271,0.77218,2590.2,2589.6,3.2078]
[1739367320478,0.77209,2590.5,2590.3,4.12028948]
[1739367320673,3.2078,2590.4,2589.8,0.00579229]
[1739367320972,0.13407553,2590.7,2589.8,2.29e-06]
[1739367320973,0.77227,2589.9,2589.8,2.29e-06]
[1739367321170,6.0,2589.9,2589.7,0.3089]
[1739367321374,0.77247,2589.3,2588.5,3.2078]
[1739367321669,3.2078,2589.4,2588.6,4.12028948]
[1739367321872,3.2078,2588.7,2587.5,3.2078]
[1739367322071,3.2078,2588.7,2587.2,3.2078]
[1739367322072,0.61857,2587.9,2587.2,3.2078]
[1739367322275,0.77289,2587.9,2587.4,4.12028948]
[1739367322471,3.2078,2588.4,2587.4,4.12028948]
[1739367322668,0.00579229,2587.8,2587.4,4.12028948]
[1739367322873,0.00579229,2587.8,2587.2,5.063]
[1739367323070,0.49271621,2587.7,2587.6,4.12028948]
[1739367323378,0.00579229,2587.8,2587.6,4.12028948]
[1739367323569,0.00579229,2587.8,2587.2,1.8552]
[1739367323769,3.2078,2587.3,2585.7,3.2078]
[1739367324073,3.2078,2586.3,2584.9,3.2078]
[1739367324275,0.77373,2585.1,2584.7,4.12028948]
[1739367324480,3.2078,2585.9,2584.5,3.2078]
[1739367324781,1.65934612,2585.0,2584.5,3.2078]
[1739367324980,1.65934612,2585.0,2584.1,3.2078]
[1739367325276,0.00579229,2585.2,2584.7,3.2078]
[1739367325478,0.77382,2584.8,2584.5,1.6683]
[1739367325678,0.77385,2584.6,2584.5,1.6683]
[1739367325880,0.77385,2584.6,2584.5,0.88839]
[1739367326074,6.08981824,2584.6,2583.3,3.2078]
[1739367326386,3.2078,2583.7,2583.0,3.2078]
[1739367326677,20.225,2584.7,2582.2,3.2078]
[1739367326678,3.2078,2584.3,2582.2,3.2078]
[1739367326878,4.14396266,2583.6,2582.2,3.2078]
[1739367327080,0.7743,2583.1,2583.0,0.3097]
[1739367327285,0.00580383,2583.5,2582.0,3.2078]
[1739367327582,0.77999383,2583.5,2583.2,3.2078]
[1739367327879,3.2078,2585.0,2583.2,3.2078]
[1739367328082,3.2078,2585.2,2584.1,4.12028948]
[1739367328280,0.77391,2584.4,2584.3,3.2078]
[1739367328677,3.2078,2585.8,2584.3,3.2078]
[1739367328873,3.2078,2585.4,2584.1,3.3624]
[1739367329079,0.00580383,2584.6,2584.1,3.36820383]
[1739367329287,0.00580383,2584.6,2584.4,3.2078]
[1739367329480,0.00580383,2584.6,2584.1,3.36820383]
[1739367329680,0.00580383,2584.6,2584.4,3.2078]
[1739367329987,0.77388,2584.5,2584.4,3.2078]
[1739367330189,0.00580383,2584.6,2584.1,0.16040383]
[1739367330190,6.00580383,2584.6,2584.1,0.16040383]
[1739367330387,0.77422,2583.4,2583.0,3.2078]
[1739367330688,3.2078,2583.7,2582.6,3.2078]
[1739367330877,3.2078,2583.1,2582.0,0.9128]
[1739367331075,3.2078,2583.3,2582.3,4.12028948]
[1739367331278,0.53964,2583.0,2582.0,4.1206]
[1739367331591,0.7190014,2583.2,2582.3,4.12028948]
[1739367331882,3.2078,2584.6,2583.4,4.12028948]
[1739367332091,0.77388,2584.5,2584.4,4.12028948]
[1739367332276,0.58418279,2584.7,2583.5,3.2078]
[1739367332476,0.04495172,2584.5,2584.4,3.2078]
[1739367332683,0.00580383,2584.7,2584.5,4.12028948]
[1739367332878,0.7736,2585.5,2584.4,3.2078]
[1739367333099,3.2078,2586.4,2585.0,3.2078]
[1739367333388,3.2078,2586.7,2585.2,3.2078]
[1739367333578,3.2078,2587.4,2586.6,4.12028948]
[1739367333780,3.2078,2588.0,2586.4,3.2078]
[1739367334083,3.2078,2587.6,2586.4,3.2078]
[1739367334274,3.2078,2587.6,2584.4,9.27075192]
[1739367334275,0.00580383,2587.3,2586.7,4.12609331]
[1739367334482,3.2078,2587.2,2586.7,0.00580383]
[1739367334682,0.77319,2586.8,2586.7,3.83e-06]
[1739367334882,0.00580383,2587.3,2586.7,3.83e-06]
[1739367335089,0.77319,2586.8,2586.7,3.83e-06]
[1739367335588,6.77319,2586.8,2586.7,3.83e-06]
[1739367335890,6.0,2586.8,2585.5,3.2078]
[1739367336080,0.00580383,2587.3,2585.4,3.2078]
[1739367336282,3.2078,2586.7,2585.6,4.12029331]
[1739367336483,0.00580383,2587.3,2585.6,3.2078]
[1739367336686,3.2078,2587.5,2586.8,4.12029331]
[1739367336882,3.2078,2587.8,2586.5,3.2078]
[1739367337078,0.77297,2587.6,2587.2,4.12029331]
[1739367337288,1.93152,2588.8,2585.3,10.1811]
[1739367337289,0.00580383,2587.4,2586.9,3.2078]
[1739367337586,0.00580383,2587.4,2586.7,4.12029331]
[1739367337778,9.21360383,2587.4,2585.6,3.2078]
[1739367337985,0.77322,2586.7,2586.1,7.32809331]
[1739367338178,0.77322,2586.7,2583.9,5.5903]
[1739367338179,0.77353,2585.7,2584.5,3.2078]
[1739367338383,3.2078,2586.1,2585.3,4.12029331]
[1739367338685,3.2078,2585.5,2585.0,4.12029331]
[1739367338885,3.2078,2585.1,2584.2,3.2078]
[1739367339188,0.77382,2584.7,2584.4,4.12029331]
[1739367339488,0.00580383,2586.0,2585.0,2.7951752]
[1739367339784,3.2078,2587.2,2585.9,2.78937137]
[1739367339985,3.2078,2586.6,2585.1,5.0879315]
[1739367340288,0.77376,2584.9,2584.0,3.2078]
[1739367340487,0.77376,2584.9,2583.5,5.7717]
[1739367340488,3.2078,2585.1,2584.3,2.78937137]
[1739367340785,20.256,2585.7,2583.7,3.2078]
[1739367340786,0.77402,2584.1,2583.9,2.78937137]
[1739367340984,3.2078,2584.1,2583.0,5.9073]
[1739367341188,0.77421,2583.4,2583.3,2.78937137]
[1739367341387,0.2696425,2584.0,2583.1,3.2078]
[1739367341583,0.77424,2583.3,2583.2,1.98738137]
[1739367341797,0.31454029,2583.4,2582.9,4.8707]
[1739367341798,0.77433,2583.1,2582.9,1.98738137]
[1739367341985,3.2078,2583.2,2581.6,3.2078]
[1739367342193,0.77454,2582.3,2582.2,1.98738137]
[1739367342696,3.2078,2583.1,2582.5,1.21292137]
[1739367342882,0.00580383,2583.3,2582.7,0.19744137]
[1739367343088,0.7746,2582.1,2581.6,4.9630012]
[1739367343385,3.2078,2582.4,2582.0,0.19744137]
[1739367343591,0.7744,2582.8,2582.3,0.19744137]
[1739367343792,5.14308,2583.8,2582.6,0.19744137]
[1739367344091,5.14308,2583.8,2582.4,3.2078]
[1739367344092,0.77409,2583.8,2583.7,0.19744137]
[1739367344286,0.7190484,2583.7,2583.2,3.2078]
[1739367344587,0.00580383,2584.0,2583.6,0.19744137]
[1739367344783,0.00580383,2584.0,2583.0,3.2078]
[1739367344988,0.00580383,2584.0,2583.9,0.19744137]
[1739367345190,3.2078,2585.9,2583.9,3.2078]
[1739367345485,3.2078,2586.9,2585.2,3.2078]
[1739367345790,7.06494371,2587.3,2585.8,3.2078]
[1739367345994,3.2078,2586.9,2585.8,3.2078]
[1739367346294,3.2078,2585.9,2584.3,3.2078]
[1739367346489,3.2078,2585.9,2584.6,3.2078]
[1739367346692,3.2078,2585.6,2584.6,3.2078]
[1739367346886,3.2078,2585.0,2584.8,0.00580383]
[1739367347183,3.2078,2585.3,2584.8,3.83e-06]
[1739367347388,0.00580383,2585.4,2584.8,3.83e-06]
[1739367347584,3.2078,2585.1,2584.8,3.83e-06]
[1739367347893,3.2078,2584.7,2582.9,3.2078]
[1739367348190,3.2078,2583.0,2581.1,3.2078]
[1739367348489,3.2078,2583.0,2580.7,10.9693]
[1739367348490,3.2078,2581.3,2581.2,0.07748334]
[1739367348696,9.98264,2581.3,2581.2,3.34e-06]
[1739367348992,9.88299032,2581.3,2579.3,3.2078]
[1739367349189,9.88299032,2581.3,2578.7,10.9482]
[1739367349190,3.88299032,2581.3,2579.9,3.2078]
[1739367349389,3.88299032,2581.3,2579.4,40.8]
[1739367349390,3.2078,2581.0,2579.4,40.8]
[1739367349692,3.2078,2580.7,2579.5,3.2078]
[1739367349889,2.7444633,2580.9,2579.6,3.2078]
[1739367350094,0.76531865,2581.3,2580.2,3.2078]
[1739367350392,3.2078,2582.3,2580.9,3.2078]
[1739367350585,3.2078,2582.1,2580.7,3.2078]
[1739367350791,0.00580383,2581.0,2580.7,3.2078]
[1739367350992,0.77476,2581.6,2580.8,5.05156904]
[1739367351192,3.2078,2582.1,2581.4,3.2078]
[1739367351396,3.2078,2583.7,2582.0,3.2078]
[1739367351695,3.866,2586.8,2583.1,3.2078]
[1739367351696,3.2078,2584.3,2583.1,3.2078]
[1739367351897,0.77403,2584.0,2583.2,4.5765]
[1739367352105,0.07739938,2584.0,2583.2,9.72558825]
[1739367352290,0.77419,2583.5,2583.2,9.72558825]
[1739367352596,1.13351157,2583.9,2583.4,3.83e-06]
[1739367352789,0.00580383,2584.0,2583.6,3.2078]
[1739367352992,20.277,2585.9,2583.5,8.17605766]
[1739367352993,3.2078,2584.7,2583.5,8.17605766]
[1739367353193,3.2078,2584.7,2583.5,3.2078]
[1739367353886,3.2078,2583.6,2583.4,3.83e-06]
[1739367354191,0.77423,2583.4,2582.2,3.2078]
[1739367354390,3.21360383,2583.8,2582.7,3.2078]
[1739367354595,3.2078,2583.2,2582.5,5.01762509]
[1739367354797,3.2078,2583.2,2582.1,5.01762509]
[1739367354798,3.2078,2582.9,2581.7,3.2078]
[1739367355093,3.2078,2582.3,2580.6,3.2078]
[1739367355286,0.77475,2581.7,2580.3,3.2078]
[1739367355489,0.45010072,2582.2,2582.0,0.00580383]
[1739367355691,3.2078,2582.2,2580.7,3.2078]
[1739367355889,1.03427827,2582.0,2580.7,3.2078]
[1739367356093,3.21360383,2581.3,2580.4,5.5606]
[1739367356297,0.77499,2580.8,2579.9,3.2078]
[1739367356492,1.48458828,2581.2,2580.3,3.2078]
[1739367356693,0.00580383,2581.3,2580.8,3.2078]
[1739367357096,0.00580383,2581.3,2581.1,3.2078]
[1739367357392,3.2078,2583.4,2581.2,5.00234619]
[1739367357598,0.77439,2582.9,2581.9,3.2078]
[1739367357902,3.2078,2582.6,2582.0,40.8]
[1739367358099,0.77473,2581.7,2581.4,4.7149]
[1739367358401,0.77469,2581.9,2581.4,4.7149]
[1739367358701,0.13498055,2582.8,2581.4,4.7149]
[1739367358702,0.00580383,2581.8,2581.5,40.8]
[1739367359003,3.2078,2582.6,2581.5,45.88153153]
[1739367359198,0.77452,2582.4,2581.5,45.88153153]
[1739367359498,3.2078,2582.2,2581.5,40.8]
[1739367359694,0.77481,2581.4,2581.3,0.00580383]
[1739367359994,0.77481,2581.4,2581.3,3.83e-06]
[1739367360197,0.77481,2581.4,2581.3,40.80000383]
[1739367360397,3.2078,2582.0,2581.3,40.80000383]
[1739367360595,0.77481,2581.4,2581.3,3.83e-06]
[1739367360996,3.2078,2582.4,2581.3,3.83e-06]
[1739367361300,0.77481,2581.4,2581.3,4.9379589]
[1739367361497,3.98261,2581.4,2581.3,3.83e-06]
[1739367361704,9.70293956,2581.4,2578.8,3.2078]
[1739367361906,3.2078,2580.4,2579.1,3.2078]
[1739367362204,0.77534,2579.7,2578.9,4.93184753]
[1739367362499,3.2078,2580.2,2579.2,4.93184753]
[1739367362701,3.2078,2579.8,2578.7,3.2078]
[1739367362897,3.2078,2579.5,2579.0,4.93184753]
[1739367363097,3.2078,2579.2,2577.9,10.5418]
[1739367363299,3.2078,2578.7,2577.2,3.2078]
[1739367363508,2.61404107,2579.4,2577.8,3.2078]
[1739367363509,3.2078,2579.0,2577.8,3.2078]
[1739367363897,3.2078,2578.7,2577.7,0.00581531]
[1739367364097,0.00581531,2578.7,2577.7,0.00581531]
[1739367364306,0.77571,2578.4,2577.7,0.00581531]
[1739367364499,0.00581531,2578.7,2577.7,0.00581531]
[1739367364698,3.21361531,2578.7,2577.7,0.00581531]
[1739367365004,0.00581531,2578.7,2578.0,3.2078]
[1739367365601,0.00581531,2578.7,2577.7,0.00581531]
[1739367365803,0.00581531,2578.7,2578.2,0.05291747]
[1739367366104,0.77589,2577.8,2577.7,5.31e-06]
[1739367366298,3.98369,2577.8,2577.7,5.31e-06]
[1739367366499,11.28316029,2577.8,2577.7,5.31e-06]
[1739367367004,11.28316029,2577.8,2576.0,3.2078]
[1739367367005,4.50727029,2577.8,2576.0,3.2078]
[1739367367307,3.2078,2577.7,2576.3,3.2078]
[1739367367500,3.2078,2576.9,2576.1,5.02609957]
[1739367367705,0.77629,2576.5,2575.7,3.2078]
[1739367367902,0.77638,2576.2,2575.8,40.8]
[1739367368204,4.40374217,2576.4,2575.8,40.8]
[1739367368500,0.78213531,2576.4,2575.8,40.8]
[1739367368706,3.2078,2576.0,2575.8,40.8]
[1739367368901,0.00581531,2576.4,2575.8,40.8]
[1739367369097,7.49534968,2575.9,2574.9,3.2078]
[1739367369298,4.28754968,2575.9,2575.6,3.2078]
[1739367369502,5.9501,2578.4,2575.6,3.2078]
[1739367369503,3.2078,2577.4,2575.6,3.2078]
[1739367369803,4.29335351,2576.6,2575.5,0.00582705]
[1739367370002,3.2078,2577.2,2575.5,0.00582705]
[1739367370003,4.29335351,2576.3,2575.5,0.00582705]
[1739367370200,3.2078,2576.8,2576.1,40.8]
[1739367370503,3.2078,2576.2,2575.5,0.00582705]
[1739367370697,3.2078,2576.6,2575.5,1.174e-05]
[1739367370902,0.49725605,2576.1,2575.5,1.174e-05]
[1739367371096,0.77652,2575.7,2575.6,40.8]
[1739367371498,0.77655,2575.6,2575.5,1.174e-05]
[1739367371701,5.06990351,2575.6,2575.5,1.174e-05]
[1739367371903,7.77020913,2575.6,2574.2,3.2078]
[1739367372098,4.29334177,2574.3,2573.5,3.2078]
[1739367372403,0.00582705,2576.7,2573.5,3.2078]
[1739367372404,7.50114177,2575.2,2573.8,3.2078]
[1739367372602,4.29334177,2575.6,2574.8,3.2078]
[1739367372806,3.2078,2576.0,2574.3,40.8]
[1739367373107,3.2078,2576.0,2575.2,3.2078]
[1739367373300,0.00582705,2575.5,2575.2,3.2078]
[1739367373701,3.2078,2577.1,2575.2,9.2078]
[1739367373903,3.2078,2577.8,2576.2,3.2078]
[1739367374102,0.77626,2576.6,2575.9,3.2078]
[1739367374309,3.2078,2576.6,2575.4,3.2078]
[1739367374611,3.2078,2575.8,2574.7,3.2078]
[1739367375008,3.2078,2576.3,2575.0,3.2078]
[1739367375206,0.00582705,2575.5,2575.0,3.21362705]
[1739367375415,0.00582705,2575.5,2575.3,3.2078]
[1739367375606,3.2078,2577.6,2575.6,3.2078]
[1739367375812,3.2078,2577.6,2576.1,3.2078]
[1739367376007,3.2078,2577.6,2575.8,3.2078]
[1739367376209,1.94009,2577.4,2575.8,3.2078]
[1739367376515,3.2078,2576.3,2575.4,3.2078]
[1739367376707,3.2078,2575.9,2575.3,3.2078]
[1739367376907,0.6780238,2576.2,2575.1,3.2078]
[1739367377101,0.77629,2576.5,2575.6,3.2078]
[1739367377306,0.00582705,2576.9,2575.8,3.2078]
[1739367377606,3.2078,2577.7,2576.4,40.8]
[1739367377806,0.00582705,2576.6,2576.4,40.8]
[1739367378104,3.2078,2578.3,2576.6,0.77623]
[1739367378308,3.2078,2578.6,2577.2,3.2078]